{"text_format":"3","workbook":"xlsx","n_sheets":1,"sheets":["C09"],"not_rendered":{"images":1},"read":"whole","date_system":"1900"}

{"sheet":"C09","index":0,"n_rows":196,"n_cols":7,"rows_kept":196,"merged":[[48,2,48,5],[50,2,50,5],[97,2,97,5],[99,2,99,5],[146,2,146,5],[148,2,148,5],[195,2,195,5]]}
["Item No","Payment Clause","Item Description","Unit","Quantity","Rate","Amount"]
[null,null,"THE FOLLOWING IN HEALTH, SAFETY AND ",{"$nulls":3},{"$f":"IFERROR(IF(E2>0,((F2)*E2),\"\"),\"\")","v":""}]
[null,null,"HYGIENE MANAGEMENT",{"$nulls":3},{"$f":"IFERROR(IF(E3>0,((F3)*E3),\"\"),\"\")","v":""}]
[{"$nulls":6},""]
[null,null,"Supply of all items of Personal Protective ",{"$nulls":3},""]
[null,null,"Clothing/Equipment & ensure use ",{"$nulls":3},""]
[null,null,"thereof for full compliance",{"$nulls":3},""]
[{"$nulls":6},""]
[1,null,"Steel toe capped safety boots ","sum",1,null,0]
[{"$nulls":6},""]
[2,null,"Overall - 2 piece suit with luminous strap","sum",1,null,0]
[{"$nulls":6},""]
[3,null,"Gloves","sum",1,null,0]
[{"$nulls":6},""]
[4,null,"Hard hats with adjustable 3 point ","sum",1,null,0]
[null,null,"webbing chin strap as per SANS 1397",{"$nulls":3},""]
[{"$nulls":6},""]
[5,null,"Climber's Hard hats with adjustable 3 ","sum",1,null,0]
[null,null,"point webbing chin strap as per SANS 1397",{"$nulls":3},""]
[{"$nulls":6},""]
[6,null,"Ear protection (earplugs etc.)","sum",1,null,0]
[{"$nulls":6},""]
[7,null,"Eye protection appropriate to task ","sum",1,null,0]
[null,null,"performed",{"$nulls":3},""]
[{"$nulls":6},""]
[8,null,"Dust Mask","sum",1,null,0]
[{"$nulls":6},""]
[9,null,"Induction tags/cards","sum",1,null,0]
[{"$nulls":6},""]
[10,null,"Luminous high visibility safety vests","sum",1,null,0]
[{"$nulls":6},""]
[11,null,"Sunbrim/ Soft hat","sum",1,null,0]
[{"$nulls":6},""]
[12,null,"Balaclava","sum",1,null,0]
[{"$nulls":6},""]
[null,null,"Supply and provision of Equipment for ",{"$nulls":3},""]
[null,null,"working at Heights & ensure use thereof ",{"$nulls":3},""]
[null,null,"for full compliance to OHS ACT and ",{"$nulls":3},""]
[null,null,"Eskom's SHE spec",{"$nulls":3},""]
[{"$nulls":6},""]
[13,null,"Optional - FALL ARREST SYSTEM (An ","sum",1,null,0]
[null,null,"approved Fall Arrest System, together",{"$nulls":3},""]
[null,null,"with training is to be supplied and ",{"$nulls":3},""]
[null,null,"installed by the Contractor. The ",{"$nulls":3},""]
[null,null,"Contractor is to supply sufficient climbing ",{"$nulls":3},""]
[null,null,"attachment units for his workforce and ",{"$nulls":3},""]
[null,null,"ensure training by the Supplier before ",{"$nulls":3},{"$f":"IFERROR(IF(E47>0,((F47)*E47),\"\"),\"\")","v":""}]
[null,null,"use. It is mandatory for the Contractor to ",{"$nulls":3},""]
[null,null,"Total Carried Forward",{"$nulls":3},{"$f":"SUM(G2:G48)","v":0}]
["Item No","Payment Clause","Item Description","Unit","Quantity","Rate","Amount"]
[null,null,"Total Brought Forward",{"$nulls":3},{"$f":"G49","v":0}]
[null,null,"use the system once installed). The ",{"$nulls":3},{"$f":"IFERROR(IF(E52>0,((F52)*E52),\"\"),\"\")","v":""}]
[null,null,"Contractor will take ownership of the fall ",{"$nulls":3},{"$f":"IFERROR(IF(E53>0,((F53)*E53),\"\"),\"\")","v":""}]
[null,null,"arrest system and it must be removed ",{"$nulls":3},""]
[null,null,"from each tower after use. Sufficient ",{"$nulls":3},""]
[null,null,"equipment should be available for ",{"$nulls":3},""]
[null,null,"construction on two towers and re-used ",{"$nulls":3},""]
[null,null,"for subsequent towers.",{"$nulls":3},""]
[{"$nulls":6},""]
[14,null,"Double lanyard harness","sum",1,null,0]
[{"$nulls":6},""]
[15,null,"Evaluation of physical and psychological ","sum",1,null,0]
[null,null,"fitness of personnel working at heights",{"$nulls":3},""]
[{"$nulls":6},""]
[16,null,"Scaffolding access ladders ","sum",1,null,0]
[{"$nulls":6},""]
[17,null,"Portable Ladders","sum",1,null,0]
[{"$nulls":6},""]
[18,null,"Rescue Kit","sum",1,null,0]
[{"$nulls":6},""]
[null,null,"Barricading",{"$nulls":3},""]
[{"$nulls":6},""]
[19,null,"Supply, erection and maintenance of all ","sum",1,null,0]
[null,null,"temporary fencing and barricading which ",{"$nulls":3},""]
[null,null,"would be required during construction to ",{"$nulls":3},""]
[null,null,"make the site safe in accordance with the ",{"$nulls":3},""]
[null,null,"OSH Act, SHE spec and CEMPr.",{"$nulls":3},""]
[{"$nulls":6},""]
[20,null,"Protection of excavation and pegging. ","sum",1,null,0]
[{"$nulls":6},""]
[null,null,"Transport",{"$nulls":3},""]
[{"$nulls":6},""]
[21,null,"Transportation of employees in ","sum",1,null,0]
[null,null,"compliance with the Transportation of ",{"$nulls":3},""]
[null,null,"employees procedure",{"$nulls":3},""]
[{"$nulls":6},""]
[null,null,"Compliance",{"$nulls":3},""]
[{"$nulls":6},""]
[22,null,"Provision of all signage in terms of latest","sum",1,null,0]
[null,null,"revision legislation",{"$nulls":3},""]
[{"$nulls":6},""]
[null,null,"Human Resources",{"$nulls":3},""]
[{"$nulls":6},""]
[23,null,"Appointment of SAFETY OFFICER FULL ","sum",1,null,0]
[null,null,"TIME ON SITE Costs associated with the ",{"$nulls":3},""]
[null,null,"appointment of Safety personel and ",{"$nulls":3},""]
[null,null,"actual time spent on implementation, ",{"$nulls":3},{"$f":"IFERROR(IF(E97>0,((F97)*E97),\"\"),\"\")","v":""}]
[null,null,"Total Carried Forward",{"$nulls":3},{"$f":"SUM(G51:G97)","v":0}]
["Item No","Payment Clause","Item Description","Unit","Quantity","Rate","Amount"]
[null,null,"Total Brought Forward",{"$nulls":3},{"$f":"G98","v":0}]
[null,null,"managing, documenting, monitoring, ",{"$nulls":3},{"$f":"IFERROR(IF(E101>0,((F101)*E101),\"\"),\"\")","v":""}]
[null,null,"reviewing, internal  and external audits, ",{"$nulls":3},{"$f":"IFERROR(IF(E102>0,((F102)*E102),\"\"),\"\")","v":""}]
[null,null,"incident investigations and mitigating ",{"$nulls":3},""]
[null,null,"safety related impacts.",{"$nulls":3},""]
[{"$nulls":6},""]
[24,null,"Environment, Health & Safety ","sum",1,null,0]
[null,null,"Representative",{"$nulls":3},""]
[{"$nulls":6},""]
[25,null,"First Aider","sum",1,null,0]
[{"$nulls":6},""]
[26,null,"Fire Fighter","sum",1,null,0]
[{"$nulls":6},""]
[27,null,"Risk Assessor","sum",1,null,0]
[{"$nulls":6},""]
[28,null,"Fall Protection Plan Developer","sum",1,null,0]
[{"$nulls":6},""]
[29,null,"Fall Protection Plan Implementor","sum",1,null,0]
[{"$nulls":6},""]
[30,null,"Slinger","sum",1,null,0]
[{"$nulls":6},""]
[31,null,"Signaller","sum",1,null,0]
[{"$nulls":6},""]
[null,null,"Occupational Hygiene",{"$nulls":3},""]
[{"$nulls":6},""]
[32,null,"Health Risk Assessment","sum",1,null,0]
[{"$nulls":6},""]
[33,null,"Occupational Hygiene Surveys",{"$nulls":3},""]
[{"$nulls":6},""]
[34,null,"Ergonomics","sum",1,null,0]
[{"$nulls":6},""]
[35,null,"Dust survey (crystalline silica analysis)","sum",1,null,0]
[{"$nulls":6},""]
[36,null,"Thermal stress surveys (heat and cold)","sum",1,null,0]
[{"$nulls":6},""]
[37,null,"Illumination survey (for work at night)","sum",1,null,0]
[{"$nulls":6},""]
[38,null,"Indoor air quality for office environment","sum",1,null,0]
[{"$nulls":6},""]
[39,null,"Noise survey for all noise generating ","sum",1,null,0]
[null,null,"equipment",{"$nulls":3},""]
[{"$nulls":6},""]
[null,null,"Occupational Health",{"$nulls":3},""]
[{"$nulls":6},""]
[40,null,"Pre-employment medical screening","sum",1,null,0]
[{"$nulls":6},""]
[{"$nulls":6},{"$f":"IFERROR(IF(E146>0,((F146)*E146),\"\"),\"\")","v":""}]
[null,null,"Total Carried Forward",{"$nulls":3},{"$f":"SUM(G100:G146)","v":0}]
["Item No","Payment Clause","Item Description","Unit","Quantity","Rate","Amount"]
[null,null,"Total Brought Forward",{"$nulls":3},{"$f":"G147","v":0}]
[41,null,"Periodic Medical Screening (follow-up on ","sum",1,null,{"$f":"IFERROR(IF(E150>0,((F150)*E150),\"\"),\"\")","v":0}]
[null,null,"identified medical condition, based on ",{"$nulls":3},{"$f":"IFERROR(IF(E151>0,((F151)*E151),\"\"),\"\")","v":""}]
[null,null,"the project duration)",{"$nulls":3},""]
[{"$nulls":6},""]
[42,null,"Exit Medical Screening","sum",1,null,0]
[{"$nulls":6},""]
[43,null,"Biological tests (Employees exposed to ","sum",1,null,0]
[null,null,"Hazardous Chemical substances) based ",{"$nulls":3},""]
[null,null,"on the Risk Assessment, OEL & MSDS",{"$nulls":3},""]
[{"$nulls":6},""]
[{"$nulls":6},""]
[{"$nulls":6},""]
[{"$nulls":6},""]
[{"$nulls":6},""]
[{"$nulls":6},""]
[{"$nulls":6},""]
[{"$nulls":6},""]
[{"$nulls":6},""]
[{"$nulls":6},""]
[{"$nulls":6},""]
[{"$nulls":6},""]
[{"$nulls":6},""]
[{"$nulls":6},""]
[{"$nulls":6},""]
[{"$nulls":6},""]
[{"$nulls":6},""]
[{"$nulls":6},""]
[{"$nulls":6},""]
[{"$nulls":6},""]
[{"$nulls":6},""]
[{"$nulls":6},""]
[{"$nulls":6},""]
[{"$nulls":6},""]
[{"$nulls":6},""]
[{"$nulls":6},""]
[{"$nulls":6},""]
[{"$nulls":6},""]
[{"$nulls":6},""]
[{"$nulls":6},""]
[{"$nulls":6},""]
[{"$nulls":6},""]
[{"$nulls":6},""]
[{"$nulls":6},""]
[{"$nulls":6},""]
[{"$nulls":6},""]
[{"$nulls":6},{"$f":"IFERROR(IF(E195>0,((F195)*E195),\"\"),\"\")","v":""}]
[null,null,"Total Carried Forward ",{"$nulls":3},{"$f":"SUM(G149:G195)","v":0}]